bitfinex/quotes_SOLUSD_20220109
["timestamp","ask_amount","ask_price","bid_price","bid_amount"]
[1641719796378,80.43054841,139.32,139.2,10.7772]
[1641719796379,80.43054841,139.32,139.2,17.5732]
[1641719796579,3.0,139.31,139.21,10.33]
[1641719796779,3.0,139.31,139.21,10.58]
[1641719796985,3.0,139.31,139.22,3.0]
[1641719797279,3.0,139.31,139.22,13.33]
[1641719797479,3.0,139.31,139.22,10.33]
[1641719797679,3.0,139.31,139.19,49.57445313]
[1641719797680,13.7781,139.31,139.19,47.921]
[1641719797880,13.7781,139.31,139.17,10.33]
[1641719798081,23.3368,139.3,139.17,10.33]
[1641719798279,25.80056352,139.29,139.17,10.33]
[1641719798479,28.80056352,139.29,139.17,10.33]
[1641719798684,28.80056352,139.29,139.17,11.98345313]
[1641719799081,27.7514977,139.26,139.17,11.98345313]
[1641719799983,11.0321,139.25,139.17,10.33]
[1641719802184,13.0174879,139.25,139.17,10.33]
[1641719803283,2.2353879,139.25,139.17,10.33]
[1641719804485,13.0175879,139.25,139.17,10.33]
[1641719805087,2.2353879,139.25,139.17,10.33]
[1641719805487,2.2353879,139.25,139.17,21.1102]
[1641719806088,0.25,139.25,139.17,21.1102]
[1641719806287,0.25,139.25,139.17,10.33]
[1641719806887,2.2353879,139.25,139.18,1.65345313]
[1641719807087,2.2353879,139.25,139.18,11.98345313]
[1641719807288,2.2353879,139.25,139.19,0.25]
[1641719807489,0.25,139.25,139.19,12.23345313]
[1641719807688,0.25,139.25,139.2,1.65345313]
[1641719808089,0.25,139.25,139.19,10.58]
[1641719809094,2.2353879,139.25,139.19,10.58]
[1641719809290,1.9853879,139.25,139.19,10.58]
[1641719809490,26.84136575,139.25,139.19,10.58]
[1641719810591,1.9853879,139.25,139.19,10.58]
[1641719810992,0.25,139.24,139.19,10.58]
[1641719811892,0.25,139.24,139.19,10.33]
[1641719812520,2.2353879,139.24,139.19,10.33]
[1641719812720,1.9853879,139.24,139.19,10.33]
[1641719812921,0.25,139.23,139.19,10.33]
[1641719813420,2.2353879,139.23,139.19,10.33]
[1641719813621,1.9853879,139.23,139.19,10.33]
[1641719813820,0.25,139.22,139.19,10.33]
[1641719814420,0.25,139.22,139.2,3.03219997]
[1641719817126,1.9853879,139.23,139.2,3.03219997]
[1641719818132,1.9853879,139.25,139.2,3.03219997]
[1641719818928,0.25,139.24,139.2,3.03219997]
[1641719819128,2.2353879,139.24,139.2,3.03219997]
[1641719819429,1.9853879,139.24,139.2,3.03219997]
[1641719820027,1.9853879,139.25,139.2,13.80979997]
[1641719820230,1.9853879,139.25,139.2,24.13979997]
[1641719820427,1.9853879,139.25,139.21,3.0]
[1641719820627,1.9853879,139.26,139.21,3.0]
[1641719820828,1.9853879,139.26,139.21,26.9998]
[1641719821427,1.9853879,139.26,139.23,10.7753]
[1641719821628,1.9853879,139.26,139.24,3.03219997]
[1641719822030,1.9853879,139.28,139.24,3.03219997]
[1641719822431,1.9853879,139.28,139.25,0.25]
[1641719822630,4.07027914,139.32,139.26,75.0]
[1641719822831,4.07027914,139.32,139.26,85.4]
[1641719823030,4.07027914,139.32,139.27,3.25]
[1641719823439,6.07074841,139.34,139.27,3.25]
[1641719823630,4.07027914,139.38,139.29,10.7695]
[1641719823830,29.98608694,139.36,139.29,10.7695]
[1641719824633,0.25,139.35,139.29,10.7695]
[1641719826435,0.25,139.35,139.28,10.7716]
[1641719833344,103.22794841,139.39,139.28,10.7716]
[1641719833843,4.05238668,139.38,139.29,0.25]
[1641719834044,4.05238668,139.38,139.31,10.7693]
[1641719834643,97.1572,139.39,139.31,10.7693]
[1641719835045,0.25,139.38,139.31,10.7693]
[1641719836247,0.25,139.38,139.3,10.77]
[1641719836449,0.25,139.38,139.3,11.02]
[1641719839152,0.25,139.38,139.3,10.77]
[1641719840149,0.25,139.38,139.29,37.5128]
[1641719840349,0.25,139.38,139.29,23.742]
[1641719840552,3.25,139.38,139.29,23.742]
[1641719840950,25.64255696,139.36,139.28,76.3858]
[1641719841349,25.64255696,139.36,139.28,87.1575]
[1641719843060,0.25,139.35,139.28,76.3858]
[1641719845664,0.25,139.35,139.26,34.504]
[1641719845882,11.0232,139.35,139.26,45.2769]
[1641719846986,4.0629315,139.34,139.26,45.2769]
[1641719847384,25.71941828,139.33,139.26,45.2769]
[1641719847585,25.71941828,139.33,139.26,10.33]
[1641719847786,25.71941828,139.33,139.23,10.33]
[1641719847987,48.59011828,139.33,139.23,10.33]
[1641719848486,3.0,139.32,139.23,10.33]
[1641719848685,7.0629315,139.32,139.23,10.33]
[1641719848886,17.8384315,139.32,139.23,21.1055]
[1641719849288,4.0629315,139.31,139.23,21.1055]
[1641719850087,4.0629315,139.32,139.24,10.2748]
[1641719850791,4.0629315,139.32,139.23,10.33]
[1641719850991,0.25,139.31,139.23,10.33]
[1641719851187,11.0259,139.31,139.23,21.1056]
[1641719851888,4.0629315,139.3,139.23,21.1056]
[1641719852488,27.52837616,139.3,139.23,21.1056]
[1641719853187,23.46544466,139.3,139.23,21.1056]
[1641719853591,0.25,139.29,139.23,21.1056]
[1641719854791,10.7748,139.32,139.23,21.1056]
[1641719855393,4.06682349,139.31,139.23,21.1056]
[1641719855596,39.81573672,139.31,139.23,21.1056]
[1641719856194,39.81573672,139.31,139.23,10.33]
[1641719857096,35.74891323,139.31,139.23,10.33]
[1641719857995,3.0,139.3,139.23,10.33]
[1641719858196,13.7764,139.3,139.23,10.33]
[1641719858398,0.25,139.29,139.23,10.33]
[1641719859399,22.8707,139.33,139.23,10.33]
[1641719859800,22.8707,139.33,139.24,3.0]
[1641719860201,22.8707,139.33,139.24,14.98345313]
[1641719860403,4.0644209,139.32,139.24,10.33]
[1641719860802,3.0,139.31,139.24,10.33]
[1641719861406,10.7776,139.28,139.24,10.33]
[1641719861603,17.5556,139.28,139.19,34.8401]
[1641719861804,24.93966469,139.27,139.19,45.6189]
[1641719862009,25.18966469,139.27,139.19,45.6189]
[1641719862204,25.18966469,139.27,139.19,34.8401]
[1641719862404,35.96846469,139.27,139.19,10.33]
[1641719863709,37.57444848,139.27,139.14,1.65345313]
[1641719863906,27.9457,139.26,139.12,79.2662]
[1641719864206,10.788,139.19,139.09,105.03]
[1641719864407,18.605,139.19,139.09,105.03]
[1641719864643,26.49566965,139.18,139.09,105.03]
[1641719865207,10.7893,139.14,139.09,94.7]
[1641719865411,16.1513,139.14,139.09,94.7]
[1641719865608,3.0,139.13,139.09,94.7]
[1641719866008,29.5175046,139.12,139.09,94.7]
[1641719866214,13.82589996,139.11,139.01,168.8]
[1641719866409,16.82589996,139.11,139.01,168.8]
[1641719867109,0.25,139.1,139.04,94.7]
[1641719867309,10.7985,139.07,139.04,94.7]
[1641719867511,37.23517314,139.06,139.04,94.7]
[1641719867909,34.20297318,139.06,139.05,3.03219997]
[1641719868109,3.0,139.06,139.05,3.03219997]
[1641719868309,35.9932,139.08,139.04,94.7]
[1641719868509,3.0,139.07,139.04,94.7]
[1641719869210,229.18525341,139.17,139.05,3.03219997]
[1641719869211,24.94166408,139.12,139.05,3.03219997]
[1641719869413,10.799,139.09,139.05,3.03219997]
[1641719869610,3.0,139.08,139.05,3.03219997]
[1641719869813,3.03219996,139.07,139.05,3.03219997]
[1641719870011,3.0,139.06,139.04,94.7]
[1641719870210,157.49525341,139.17,139.0,95.9109]
[1641719870413,35.9957,139.08,139.0,95.9109]
[1641719870613,35.9957,139.08,139.0,34.19466307]
[1641719870813,153.5471,139.17,139.01,0.25]
[1641719871013,3.0,139.13,139.01,3.25]
[1641719871218,10.33,139.14,139.02,1.46099313]
[1641719871513,10.7917,139.14,139.03,3.32]
[1641719871714,10.7917,139.14,139.03,15.30345313]
[1641719871915,10.7917,139.14,139.04,1.91345313]
[1641719872214,10.7917,139.14,139.05,0.07]
[1641719872413,10.7917,139.14,139.05,0.32]
[1641719872815,0.25,139.13,139.05,3.32]
[1641719873016,3.25,139.13,139.05,0.32]
[1641719873216,0.25,139.13,139.05,0.32]
[1641719873418,24.43619356,139.15,139.05,0.07]
[1641719873617,10.33,139.19,139.06,1.65345313]
[1641719873819,22.5018,139.2,139.07,10.33]
[1641719874017,22.5018,139.2,139.07,13.84]
[1641719874216,22.5018,139.2,139.07,15.49345313]
[1641719874417,76.1047,139.22,139.07,15.49345313]
[1641719874616,27.71188298,139.21,139.07,15.49345313]
[1641719875019,0.25,139.2,139.07,15.49345313]
[1641719875218,0.25,139.2,139.07,13.84]
[1641719875419,0.25,139.2,139.07,13.33]
[1641719875620,4.844394,139.2,139.07,10.33]
[1641719875821,15.174394,139.2,139.07,10.33]
[1641719876021,25.960994,139.2,139.07,10.33]
[1641719876427,24.3666,139.2,139.07,10.33]
[1641719876824,25.960994,139.2,139.07,10.33]
[1641719879327,24.3666,139.2,139.07,10.33]
[1641719879754,25.960994,139.2,139.07,10.33]
[1641719880253,25.710994,139.2,139.07,10.33]
[1641719880453,24.1166,139.2,139.07,10.33]
[1641719880654,24.1166,139.2,139.08,0.25]
[1641719881055,24.1166,139.2,139.06,78.7193]
[1641719881254,25.710994,139.2,139.06,78.7193]
[1641719881959,25.710994,139.2,139.05,33.9127]
[1641719882154,26.510994,139.2,139.06,3.0]
[1641719882758,26.510994,139.2,139.05,3.0]
[1641719882956,0.25,139.19,139.05,3.0]
[1641719883157,28.84567384,139.16,139.05,13.789]
[1641719883559,3.0,139.15,139.05,13.789]
[1641719883758,28.84567384,139.16,139.05,13.789]
[1641719883960,28.84567384,139.16,139.06,0.25]
[1641719884160,39.63527384,139.16,139.06,0.25]
[1641719884367,3.0,139.15,139.06,0.25]
[1641719884560,28.84567384,139.16,139.05,10.789]
[1641719885066,3.0,139.15,139.05,10.789]
[1641719885463,3.0,139.15,139.04,24.0051]
[1641719885662,3.0,139.15,139.05,3.0]
[1641719886263,13.7903,139.15,139.05,3.0]
[1641719886462,10.7903,139.15,139.05,3.0]
[1641719886862,3.0,139.14,139.04,3.0]
[1641719887263,1.59086875,139.13,139.02,3.0]
[1641719887464,0.25,139.12,139.02,3.0]
[1641719887662,3.25,139.12,139.02,3.0]
[1641719887863,23.80162629,139.11,139.02,3.0]
[1641719889566,3.25,139.12,139.02,13.7914]
[1641719889767,49.5254,139.15,139.03,0.25]
[1641719889967,3.94815341,139.2,139.04,10.33]
[1641719890172,27.24045341,139.2,139.04,34.51925313]
[1641719890370,99.40435341,139.2,139.05,27.7907]
[1641719890569,28.58027661,139.2,139.06,18.99670329]
[1641719890768,24.6321232,139.2,139.12,10.7819]
[1641719891398,24.6321232,139.2,139.13,3.0]
[1641719891595,0.25,139.19,139.13,3.0]
[1641719891800,24.6321232,139.2,139.09,10.33]
[1641719892000,24.6321232,139.2,139.13,10.7827]
[1641719892396,24.6321232,139.2,139.14,3.0]
[1641719892796,24.6321232,139.2,139.1,3.25]
[1641719892995,24.6321232,139.2,139.1,49.5199]
[1641719893195,0.25,139.19,139.1,46.5199]
[1641719893395,0.25,139.19,139.11,3.0]
[1641719893796,0.25,139.19,139.12,0.25]
[1641719894196,0.25,139.19,139.13,10.7824]
[1641719894400,0.25,139.19,139.12,0.25]
[1641719895096,0.25,139.19,139.11,3.0]
[1641719895496,0.25,139.19,139.08,10.33]
[1641719895696,0.25,139.19,139.09,3.0]
[1641719896396,0.25,139.19,139.1,0.25]
[1641719896800,24.6321232,139.2,139.1,0.25]
[1641719897199,3.94815341,139.22,139.1,10.58]
[1641719897599,23.8738,139.24,139.1,21.3652]
[1641719897600,27.82195341,139.24,139.1,21.3652]
[1641719897802,3.0,139.23,139.1,21.3652]
[1641719898200,25.95678197,139.22,139.1,21.3652]
[1641719898606,25.95678197,139.22,139.11,3.0]
[1641719898805,25.95678197,139.22,139.13,10.7828]
[1641719899004,0.25,139.21,139.14,3.0]
[1641719899406,3.25,139.21,139.08,10.33]
[1641719900006,14.0352,139.21,139.08,10.33]
[1641719900608,17.98335341,139.21,139.08,10.33]
[1641719901511,28.21688486,139.19,139.08,10.33]
[1641719901710,28.21688486,139.19,139.09,0.25]
[1641719901910,3.0,139.18,139.09,0.25]
[1641719902515,28.21688486,139.19,139.09,0.25]
[1641719902715,39.00428486,139.19,139.09,0.25]
[1641719903815,13.788,139.18,139.09,0.25]
[1641719904015,3.0,139.18,139.09,0.25]
[1641719904916,13.7874,139.18,139.09,0.25]
[1641719905316,0.25,139.17,139.07,99.9487]
[1641719905517,0.25,139.17,139.05,24.2807]
[1641719905716,1.84086875,139.17,139.05,24.2807]
[1641719905916,10.7916,139.13,139.05,24.2807]
[1641719906118,22.82097607,139.12,139.03,74.8665]
[1641719906317,25.82097607,139.12,139.03,74.8665]
[1641719906516,25.82097607,139.12,139.02,10.33]
[1641719906717,25.82097607,139.12,139.03,3.0]
[1641719908520,36.61277607,139.12,139.03,3.0]
[1641719909020,0.25,139.11,139.03,3.0]
[1641719909520,0.25,139.11,139.02,10.33]
[1641719909723,11.0425,139.11,139.02,10.33]
[1641719910123,25.16496334,139.09,139.02,10.33]
[1641719910523,3.0,139.08,139.0,100.7557]
[1641719910723,13.7948,139.08,139.0,100.7557]
[1641719910922,13.7948,139.08,139.01,0.25]
[1641719911526,13.7948,139.08,138.98,119.2041]
[1641719911723,24.1248,139.08,138.99,0.25]
[1641719912025,1.84086875,139.07,138.98,94.7]
[1641719912227,10.8079,139.03,138.98,94.7]
[1641719912424,0.25,139.02,138.98,94.7]
[1641719912624,3.25,139.02,138.98,22.6325]
[1641719912831,84.0338,139.0,138.9,4.05655156]
[1641719913024,3.0,138.99,138.9,4.05655156]
[1641719913423,10.33,139.0,138.9,4.05655156]
[1641719913624,41.95150635,138.99,138.89,500.0]
[1641719913825,44.95150635,138.99,138.89,500.0]
[1641719914024,3.0,138.98,138.89,500.0]
[1641719915026,0.25,138.97,138.89,500.0]
[1641719915323,10.33,138.99,138.9,3.0]
[1641719915527,10.33,139.02,138.9,4.65345313]
[1641719915730,3.94815341,139.05,138.9,14.98345313]
[1641719915929,3.94815341,139.05,138.91,21.37717247]
[1641719916126,3.94815341,139.07,138.92,13.33]
[1641719916327,3.94815341,139.07,138.93,0.47437586]
[1641719916525,3.94815341,139.07,138.94,10.33]
[1641719916928,3.94815341,139.07,138.95,3.51]
[1641719917152,74.1828,139.14,138.96,10.33]
[1641719917355,39.76815341,139.15,138.97,129.38]
[1641719917552,39.76815341,139.15,138.99,129.13]
[1641719917752,28.7049077,139.14,139.0,18.28435674]
[1641719917953,28.7049077,139.14,139.0,21.79435674]
[1641719918152,28.7049077,139.14,139.01,129.13]
[1641719918354,28.7049077,139.14,139.02,10.58]
[1641719918556,0.25,139.13,139.02,13.33]
[1641719918953,3.25,139.13,139.02,13.33]
[1641719919252,28.7049077,139.14,139.02,13.33]
[1641719919856,28.7049077,139.14,139.03,0.25]
[1641719920054,28.7049077,139.14,139.04,10.33]
[1641719921055,0.25,139.13,139.04,10.33]
[1641719921855,3.94815341,139.17,139.04,10.33]
[1641719921856,3.94815341,139.17,139.05,4.90345313]
[1641719922058,3.94815341,139.18,139.06,10.33]
[1641719922255,3.94815341,139.18,139.06,11.98345313]
[1641719922458,3.0,139.17,139.07,0.25]
[1641719922657,3.0,139.17,139.08,10.33]
[1641719922857,25.49396504,139.16,139.08,10.33]
[1641719923057,3.0,139.2,139.08,10.33]
[1641719923258,3.94815341,139.21,139.16,19.34326199]
[1641719923657,3.94815341,139.21,139.16,29.67326199]
[1641719924259,30.68761551,139.23,139.16,29.67326199]
[1641719924662,0.25,139.22,139.16,19.34326199]
[1641719925264,30.68761551,139.23,139.16,19.34326199]
[1641719925664,31.53761551,139.23,139.16,19.34326199]
[1641719926265,3.0,139.22,139.16,19.34326199]
[1641719926467,52.0,139.21,139.16,1e-08]
[1641719926665,52.25,139.21,139.16,1e-08]
[1641719926865,0.25,139.21,139.16,1e-08]
[1641719927066,4.19815341,139.21,139.16,1e-08]
[1641719927769,0.25,139.21,139.16,1e-08]
[1641719927969,0.25,139.22,139.16,1e-08]
[1641719928768,4.19815341,139.22,139.16,1e-08]
[1641719930071,3.0,139.21,139.16,1e-08]
[1641719930271,10.83499589,139.21,139.16,1e-08]
[1641719930569,7.83499589,139.21,139.16,1e-08]
[1641719930971,3.94815341,139.22,139.16,1e-08]
[1641719931571,3.94815341,139.24,139.16,1e-08]
[1641719931973,0.25,139.23,139.16,1e-08]
[1641719932975,3.94815341,139.24,139.16,1e-08]
[1641719933178,3.94815341,139.24,139.16,10.33000001]
[1641719933374,3.94815341,139.24,139.17,0.25]
[1641719933974,3.94815341,139.26,139.18,10.7784]
[1641719934374,0.25,139.25,139.18,10.7784]
[1641719934976,30.45278428,139.25,139.18,10.7784]
[1641719935477,30.45278428,139.25,139.16,21.10960001]
[1641719935912,0.25,139.25,139.17,3.0]
[1641719936077,0.25,139.25,139.18,10.33]
[1641719936279,3.94815341,139.27,139.18,10.33]
[1641719936982,27.45146107,139.26,139.18,10.33]
[1641719938384,27.45146107,139.26,139.19,0.25]
[1641719938584,0.25,139.25,139.19,0.25]
[1641719938788,27.45146107,139.26,139.19,0.25]
[1641719939086,3.94815341,139.28,139.19,11.0278]
[1641719939485,23.3243,139.29,139.19,10.7778]
[1641719939682,23.3243,139.29,139.18,10.33]
[1641719939882,28.41922421,139.28,139.18,10.33]
[1641719940583,28.16922421,139.28,139.19,0.25]
[1641719940782,32.11737762,139.28,139.2,10.33]
[1641719941384,3.0,139.27,139.16,10.33000001]
[1641719941587,38.78837762,139.28,139.17,3.0]
[1641719941785,32.11737762,139.28,139.17,3.0]
[1641719941985,0.25,139.27,139.17,3.0]
[1641719942188,8.0817084,139.27,139.17,3.0]
[1641719942385,8.0817084,139.27,139.16,1e-08]
[1641719942784,1.95165637,139.25,139.16,1e-08]
[1641719942987,0.25,139.24,139.16,1e-08]
[1641719943586,1.95165637,139.22,139.16,1e-08]
[1641719943787,0.25,139.21,139.16,1e-08]
[1641719943989,3.25,139.21,139.16,1e-08]
[1641719945588,9.894,139.21,139.16,1e-08]
[1641719946887,0.25,139.21,139.16,1e-08]
[1641719947086,1.95165637,139.18,139.16,1e-08]
[1641719947397,3.28219996,139.17,139.16,1e-08]
[1641719947787,9.38119996,139.17,139.16,1e-08]
[1641719948389,11.33285633,139.17,139.08,10.33]
[1641719948788,24.37405453,139.16,139.08,10.33]
[1641719948989,0.25,139.15,139.08,10.33]
[1641719949790,1.89399491,139.14,139.08,10.33]
[1641719949989,3.25,139.13,139.08,10.33]
[1641719950591,3.0,139.13,139.09,0.25]
[1641719950796,1.89399491,139.15,139.09,3.25]
[1641719950992,1.89399491,139.15,139.1,1.65345313]
[1641719951193,1.89399491,139.17,139.1,1.65345313]
[1641719951393,2.14399491,139.17,139.11,0.25]
[1641719951793,2.14399491,139.17,139.1,1.65345313]
[1641719951992,2.14399491,139.17,139.09,3.0]
[1641719952193,2.14399491,139.17,139.08,10.33]
[1641719952796,1.89399491,139.15,139.08,10.33]
[1641719953195,3.94815341,139.18,139.09,0.07]
[1641719953398,3.94815341,139.18,139.1,139.46]
[1641719953597,3.94815341,139.18,139.11,3.0]
[1641719953796,3.94815341,139.18,139.12,10.4]
[1641719954094,3.94815341,139.18,139.13,3.25]
[1641719954295,3.94815341,139.18,139.14,10.33]
[1641719954794,3.94815341,139.22,139.14,11.98345313]
[1641719954995,3.94815341,139.22,139.15,0.25]
[1641719955194,3.94815341,139.22,139.16,10.33]
[1641719955397,3.94815341,139.22,139.16,11.98345313]
[1641719955596,35.33675455,139.22,139.16,11.98345313]
[1641719955796,35.33675455,139.22,139.16,10.33]
[1641719955797,31.38860114,139.22,139.16,10.33]
[1641719956597,7.76595383,139.21,139.16,10.33]
[1641719956796,8.01595383,139.21,139.16,10.33]
[1641719957402,4.19815341,139.21,139.16,10.33]
[1641719957899,3.0,139.2,139.16,10.33]
[1641719958301,0.25,139.19,139.16,10.33]
[1641719958502,3.03219996,139.18,139.16,10.33]
[1641719959200,3.94815341,139.21,139.16,10.33]
[1641719959401,0.25,139.2,139.17,3.03219997]
[1641719960701,3.94815341,139.22,139.17,3.03219997]
[1641719960702,0.25,139.21,139.17,3.03219997]
[1641719960902,3.94815341,139.22,139.17,3.03219997]
[1641719961104,3.94815341,139.23,139.17,13.81219997]
[1641719961502,3.94815341,139.23,139.17,3.03219997]
[1641719961702,3.94815341,139.24,139.17,3.03219997]
[1641719962103,3.94815341,139.24,139.17,13.81189997]
[1641719962303,0.25,139.23,139.17,3.03219997]
[1641719965107,4.19815341,139.23,139.17,3.03219997]
[1641719966133,3.87615823,139.22,139.17,3.03219997]
[1641719966533,0.25,139.21,139.17,3.03219997]
[1641719966931,0.25,139.21,139.14,10.33]
[1641719967333,0.25,139.21,139.1,1.65345313]
[1641719967532,0.25,139.21,139.12,10.7837]
[1641719967933,4.19815341,139.21,139.12,10.7837]
[1641719968134,3.94815341,139.21,139.12,10.7837]
[1641719968334,0.25,139.2,139.11,10.33]
[1641719968536,28.90215366,139.18,139.11,21.1148]
[1641719968936,0.25,139.17,139.11,21.1148]
[1641719970638,0.25,139.17,139.11,10.33]
[1641719971442,4.19815341,139.17,139.11,10.33]
[1641719972240,0.25,139.17,139.11,10.33]
[1641719973041,4.19815341,139.17,139.11,10.33]
[1641719973542,0.25,139.17,139.11,10.33]
[1641719973742,0.25,139.17,139.07,10.33]
[1641719973944,0.25,139.17,139.07,13.58]
[1641719974342,4.19815341,139.17,139.07,13.58]
[1641719974951,4.19815341,139.17,139.07,10.33]
[1641719976743,7.78111832,139.16,139.07,10.33]
[1641719976943,0.25,139.15,139.07,10.33]
[1641719977746,7.78111832,139.14,139.07,10.33]
[1641719977945,0.25,139.13,139.07,10.33]
[1641719978346,7.78111832,139.14,139.07,10.33]
[1641719978547,3.94815341,139.16,139.07,10.33]
[1641719978945,3.94815341,139.16,139.07,22.77145313]
[1641719979149,3.94815341,139.16,139.08,3.0]
[1641719979346,3.94815341,139.16,139.08,13.33]
[1641719979548,32.85030707,139.18,139.09,1.65345313]
[1641719979749,32.85030707,139.18,139.1,10.33]
[1641719979948,32.85030707,139.18,139.08,13.33]
[1641719980148,32.85030707,139.18,139.08,10.33]
[1641719980350,28.90215366,139.18,139.08,10.33]
[1641719980550,28.90215366,139.18,139.09,1.65345313]
[1641719980751,0.25,139.17,139.08,10.33]
[1641719982051,4.19815341,139.17,139.08,10.33]
[1641719983460,0.25,139.17,139.08,10.33]
[1641719984956,4.19815341,139.17,139.08,10.33]
[1641719986456,3.94815341,139.14,139.08,10.33]
[1641719986856,0.25,139.13,139.08,10.33]
[1641719988057,3.94815341,139.16,139.08,10.33]
[1641719990160,3.94815341,139.14,139.04,10.33]
[1641719990358,0.25,139.13,139.04,13.33]
[1641719990558,8.983,139.13,139.04,13.33]
[1641719990963,8.983,139.13,139.04,10.33]
[1641719991157,10.57093415,139.13,139.01,10.33]
[1641719991359,8.01361955,139.12,138.97,10.33]
[1641719991658,32.64860918,139.11,138.97,10.33]
[1641719991859,34.48654333,139.11,138.97,10.33]
[1641719992264,3.94815341,139.09,138.97,10.33]
[1641719992461,0.25,139.08,138.97,10.33]
[1641719992660,3.25,139.08,138.97,21.1257]
[1641719993061,3.0,139.08,138.97,21.1257]
[1641719993460,3.0,139.09,138.97,21.1257]
[1641719994362,0.25,139.08,138.98,0.25]
[1641719994765,0.25,139.08,138.97,10.33]
[1641719994963,7.59593415,139.08,138.91,3.7404845]
[1641719995163,31.25223415,139.08,138.92,10.33]
[1641719995364,3.0,139.07,138.92,10.33]
[1641719995763,0.25,139.06,138.92,10.33]
[1641719996072,3.94815341,139.05,138.92,10.33]
[1641719996272,25.22051663,139.04,138.92,11.98345313]
[1641719996469,28.22051663,139.04,138.93,3.0]
[1641719996670,28.22051663,139.04,138.92,10.33]
[1641719997274,28.22051663,139.04,138.93,2.75]
[1641719997472,25.22051663,139.04,138.97,10.795]
[1641719998070,76.2459,139.06,138.97,10.795]
[1641719998270,3.94815341,139.09,138.97,10.795]
[1641719998271,3.94815341,139.09,138.97,18.67345313]
[1641719998472,3.94815341,139.09,138.98,10.33]
[1641719998673,3.94815341,139.09,139.02,10.7911]
[1641719999074,104.20757879,139.1,139.02,10.7911]
[1641719999473,24.33897879,139.1,139.0,10.33]
[1641719999696,24.33897879,139.1,139.01,3.0]
[1641719999901,24.33897879,139.1,139.01,10.58]
[1641720000100,24.33897879,139.1,139.01,10.33]
[1641720000702,24.33897879,139.1,139.01,21.1225]
[1641720000903,0.25,139.09,139.01,21.1225]
[1641720001304,24.33897879,139.1,139.01,21.1225]
[1641720001703,24.33897879,139.1,139.01,10.33]
[1641720002905,0.25,139.09,139.01,21.1224]
[1641720003707,3.94815341,139.13,139.02,0.25]
[1641720003906,3.0,139.12,139.02,13.58]
[1641720004306,129.63625341,139.14,139.07,10.7874]
[1641720004507,27.28151198,139.14,139.07,10.7874]
[1641720004706,3.94815341,139.14,139.07,10.7874]
[1641720004906,3.94815341,139.14,139.08,3.0]
[1641720005306,3.94815341,139.16,139.08,3.0]
[1641720005508,3.94815341,139.16,139.09,10.58]
[1641720005707,36.46429181,139.19,139.1,63.0]
[1641720005908,36.46429181,139.19,139.11,0.25]
[1641720006208,30.3935434,139.19,139.11,0.25]
[1641720007109,30.3935434,139.19,139.1,38.9422]
[1641720007310,30.3935434,139.19,139.11,10.7848]
[1641720007515,0.25,139.18,139.11,10.7848]
[1641720008121,3.0,139.18,139.11,10.7848]
[1641720008317,30.3935434,139.19,139.11,10.7848]
[1641720009119,30.3935434,139.19,139.13,10.783]
[1641720009322,3.0,139.18,139.13,10.783]
[1641720009722,7.05763405,139.18,139.13,10.783]
[1641720010124,0.25,139.17,139.13,10.783]
[1641720010327,0.25,139.17,139.08,35.9478]